[Event "Titled Tuesday Blitz March 21 Early 2023"]
[White "Hayrapetyan, Hovik"]
[Black "Andreikin, Dmitry"]
[WhiteFideId "13302639"]
[BlackFideId "4158814"]
[WhiteElo "2348"]
[BlackElo "2736"]
[Result "0-1"]
[Round "11"]
[TimeControl "180+2"]
[Date "2023.03.21"]
[WhiteClock "0:00:01"]
[BlackClock "0:00:05"]

1. d4 {[%clk 0:03:00]}  d5 {[%clk 0:02:58]} 2. c4 {[%clk 0:03:00]}  c6 {[%clk 0:02:58]} 3. Nf3 {[%clk 0:03:00]}  e6 {[%clk 0:02:58]} 4. Nc3 {[%clk 0:03:00]}  Nf6 {[%clk 0:02:58]} 5. e3 {[%clk 0:03:00]}  Nbd7 {[%clk 0:02:57]} 6. Bd3 {[%clk 0:03:01]}  dxc4 {[%clk 0:02:55]} 7. Bxc4 {[%clk 0:03:02]}  Bd6 {[%clk 0:02:55]} 8. e4 {[%clk 0:02:59]}  b5 {[%clk 0:02:32]} 9. Bb3 {[%clk 0:02:55]}  b4 {[%clk 0:02:31]} 10. e5 {[%clk 0:02:51]}  bxc3 {[%clk 0:02:32]} 11. exd6 {[%clk 0:02:50]}  cxb2 {[%clk 0:02:30]} 12. Bxb2 {[%clk 0:02:46]}  Ba6 {[%clk 0:02:30]} 13. Ne5 {[%clk 0:02:29]}  Ne4 {[%clk 0:02:19]} 14. Qc2 {[%clk 0:02:29]}  Qa5+ {[%clk 0:02:12]} 15. Kd1 {[%clk 0:02:29]}  Nef6 {[%clk 0:01:30]} 16. Re1 {[%clk 0:01:57]}  O-O {[%clk 0:01:26]} 17. Qc3 {[%clk 0:01:41]}  Qb5 {[%clk 0:01:18]} 18. Qxc6 {[%clk 0:01:22]}  Rfc8 {[%clk 0:01:08]} 19. Qxb5 {[%clk 0:01:20]}  Bxb5 {[%clk 0:01:09]} 20. Kd2 {[%clk 0:01:10]}  Nb6 {[%clk 0:01:05]} 21. Rac1 {[%clk 0:01:01]}  Rxc1 {[%clk 0:01:05]} 22. Bxc1 {[%clk 0:00:45]}  Rd8 {[%clk 0:01:05]} 23. Ba3 {[%clk 0:00:45]}  Nc8 {[%clk 0:01:05]} 24. Bc5 {[%clk 0:00:32]}  a6 {[%clk 0:00:52]} 25. a4 {[%clk 0:00:23]}  Be8 {[%clk 0:00:53]} 26. Nc4 {[%clk 0:00:20]}  Bc6 {[%clk 0:00:47]} 27. f3 {[%clk 0:00:19]}  Bd5 {[%clk 0:00:45]} 28. Rb1 {[%clk 0:00:18]}  h5 {[%clk 0:00:42]} 29. Ne5 {[%clk 0:00:14]}  Bxb3 {[%clk 0:00:21]} 30. Rxb3 {[%clk 0:00:15]}  Nxd6 {[%clk 0:00:21]} 31. Bxd6 {[%clk 0:00:16]}  Rxd6 {[%clk 0:00:22]} 32. Rb8+ {[%clk 0:00:17]}  Kh7 {[%clk 0:00:22]} 33. Rh8+ {[%clk 0:00:17]}  Kxh8 {[%clk 0:00:23]} 34. Nxf7+ {[%clk 0:00:18]}  Kh7 {[%clk 0:00:21]} 35. Nxd6 {[%clk 0:00:19]}  Nd5 {[%clk 0:00:22]} 36. Ne4 {[%clk 0:00:18]}  a5 {[%clk 0:00:18]} 37. Ng5+ {[%clk 0:00:18]}  Kg6 {[%clk 0:00:17]} 38. Nxe6 {[%clk 0:00:18]}  Nb6 {[%clk 0:00:14]} 39. Nc5 {[%clk 0:00:18]}  Kf5 {[%clk 0:00:14]} 40. g3 {[%clk 0:00:18]}  g5 {[%clk 0:00:14]} 41. Kd3 {[%clk 0:00:14]}  g4 {[%clk 0:00:15]} 42. f4 {[%clk 0:00:13]}  h4 {[%clk 0:00:15]} 43. Nb3 {[%clk 0:00:09]}  Nxa4 {[%clk 0:00:12]} 44. Nxa5 {[%clk 0:00:09]}  Nb2+ {[%clk 0:00:12]} 45. Ke3 {[%clk 0:00:07]}  Nd1+ {[%clk 0:00:11]} 46. Ke2 {[%clk 0:00:07]}  Nc3+ {[%clk 0:00:11]} 47. Kf2 {[%clk 0:00:05]}  Ne4+ {[%clk 0:00:10]} 48. Kg2 {[%clk 0:00:05]}  h3+ {[%clk 0:00:10]} 49. Kg1 {[%clk 0:00:05]}  Nd2 {[%clk 0:00:10]} 50. Nc6 {[%clk 0:00:05]}  Nf3+ {[%clk 0:00:08]} 51. Kh1 {[%clk 0:00:06]}  Ke4 {[%clk 0:00:08]} 52. Ne5 {[%clk 0:00:05]}  Nxd4 {[%clk 0:00:06]} 53. Nxg4 {[%clk 0:00:04]}  Kf3 {[%clk 0:00:06]} 54. Ne5+ {[%clk 0:00:02]}  Ke2 {[%clk 0:00:05]} 55. g4 {[%clk 0:00:01]}  Kf1 {[%clk 0:00:05]} 0-1


[Site "https://www.chess.com"]

[Event "Titled Tuesday Blitz March 21 Early 2023"]
[White "Ter-Sahakyan, Samvel"]
[Black "Weetik, Vjacheslav"]
[WhiteFideId "13302531"]
[BlackFideId "4153472"]
[WhiteElo "2566"]
[BlackElo "2469"]
[Result "1-0"]
[Round "11"]
[TimeControl "180+2"]
[Date "2023.03.21"]
[WhiteClock "0:00:05"]
[BlackClock "0:00:02"]

1. d4 {[%clk 0:02:59]}  Nf6 {[%clk 0:02:59]} 2. c4 {[%clk 0:02:59]}  e6 {[%clk 0:02:59]} 3. Nf3 {[%clk 0:02:59]}  d5 {[%clk 0:02:58]} 4. Nc3 {[%clk 0:02:58]}  Be7 {[%clk 0:02:58]} 5. Bf4 {[%clk 0:02:57]}  O-O {[%clk 0:02:58]} 6. e3 {[%clk 0:02:58]}  Nbd7 {[%clk 0:02:58]} 7. c5 {[%clk 0:02:55]}  c6 {[%clk 0:02:59]} 8. h3 {[%clk 0:02:44]}  b6 {[%clk 0:02:58]} 9. b4 {[%clk 0:02:45]}  a5 {[%clk 0:02:58]} 10. a3 {[%clk 0:02:45]}  Ba6 {[%clk 0:02:57]} 11. Bxa6 {[%clk 0:02:43]}  Rxa6 {[%clk 0:02:57]} 12. O-O {[%clk 0:02:44]}  Qa8 {[%clk 0:02:54]} 13. Rb1 {[%clk 0:02:42]}  axb4 {[%clk 0:02:47]} 14. axb4 {[%clk 0:02:42]}  b5 {[%clk 0:02:48]} 15. Qc2 {[%clk 0:02:38]}  Qa7 {[%clk 0:02:39]} 16. Nd2 {[%clk 0:02:26]}  Ra8 {[%clk 0:02:37]} 17. Nb3 {[%clk 0:02:26]}  Bd8 {[%clk 0:02:37]} 18. Ra1 {[%clk 0:02:22]}  h6 {[%clk 0:02:21]} 19. Qb2 {[%clk 0:02:18]}  Nf8 {[%clk 0:02:00]} 20. Rxa6 {[%clk 0:02:17]}  Qxa6 {[%clk 0:02:00]} 21. Ra1 {[%clk 0:02:17]}  Qb7 {[%clk 0:02:01]} 22. Rxa8 {[%clk 0:02:15]}  Qxa8 {[%clk 0:02:01]} 23. Qa2 {[%clk 0:02:15]}  Qxa2 {[%clk 0:01:59]} 24. Nxa2 {[%clk 0:02:15]}  Ng6 {[%clk 0:00:51]} 25. Bd6 {[%clk 0:02:02]}  Ne4 {[%clk 0:00:44]} 26. Na5 {[%clk 0:02:01]}  Nxd6 {[%clk 0:00:35]} 27. cxd6 {[%clk 0:02:01]}  Kf8 {[%clk 0:00:34]} 28. Nxc6 {[%clk 0:01:58]}  Ke8 {[%clk 0:00:34]} 29. Nc3 {[%clk 0:01:47]}  Bf6 {[%clk 0:00:27]} 30. Nxb5 {[%clk 0:01:20]}  Kd7 {[%clk 0:00:25]} 31. Na5 {[%clk 0:00:52]}  e5 {[%clk 0:00:20]} 32. Nb3 {[%clk 0:00:42]}  exd4 {[%clk 0:00:19]} 33. N3xd4 {[%clk 0:00:39]}  Ne5 {[%clk 0:00:19]} 34. Nc7 {[%clk 0:00:32]}  Kxd6 {[%clk 0:00:18]} 35. Ne8+ {[%clk 0:00:33]}  Ke7 {[%clk 0:00:14]} 36. Nxf6 {[%clk 0:00:33]}  Kxf6 {[%clk 0:00:15]} 37. b5 {[%clk 0:00:33]}  Nc4 {[%clk 0:00:15]} 38. Kf1 {[%clk 0:00:33]}  Ke5 {[%clk 0:00:16]} 39. Ke2 {[%clk 0:00:33]}  g6 {[%clk 0:00:16]} 40. g4 {[%clk 0:00:32]}  Kd6 {[%clk 0:00:16]} 41. Kf3 {[%clk 0:00:30]}  Ne5+ {[%clk 0:00:16]} 42. Kg3 {[%clk 0:00:30]}  Kc5 {[%clk 0:00:16]} 43. h4 {[%clk 0:00:28]}  Nc4 {[%clk 0:00:11]} 44. h5 {[%clk 0:00:28]}  Nd6 {[%clk 0:00:09]} 45. g5 {[%clk 0:00:25]}  hxg5 {[%clk 0:00:06]} 46. h6 {[%clk 0:00:25]}  f6 {[%clk 0:00:04]} 47. h7 {[%clk 0:00:16]}  Nf7 {[%clk 0:00:04]} 48. Kg4 {[%clk 0:00:13]}  Ne5+ {[%clk 0:00:03]} 49. Kh3 {[%clk 0:00:12]}  Nf7 {[%clk 0:00:04]} 50. Kg3 {[%clk 0:00:10]}  Kb6 {[%clk 0:00:03]} 51. Kg2 {[%clk 0:00:06]}  Kc5 {[%clk 0:00:04]} 52. Kf1 {[%clk 0:00:06]}  Kb6 {[%clk 0:00:04]} 53. Ke2 {[%clk 0:00:07]}  g4 {[%clk 0:00:05]} 54. Kf1 {[%clk 0:00:06]}  Kc5 {[%clk 0:00:05]} 55. Kg2 {[%clk 0:00:06]}  f5 {[%clk 0:00:04]} 56. Kg3 {[%clk 0:00:04]}  Kb6 {[%clk 0:00:03]} 57. Kf4 {[%clk 0:00:05]}  Kc5 {[%clk 0:00:03]} 58. Nxf5 {[%clk 0:00:05]}  gxf5 {[%clk 0:00:04]} 59. Kxf5 {[%clk 0:00:05]}  Kxb5 {[%clk 0:00:04]} 60. Kf6 {[%clk 0:00:06]}  g3 {[%clk 0:00:02]} 61. fxg3 {[%clk 0:00:06]}  Nd6 {[%clk 0:00:02]} 62. h8=Q {[%clk 0:00:05]} 1-0


[Site "https://www.chess.com"]

[Event "Titled Tuesday Blitz March 21 Early 2023"]
[White "Salimova, Nurgyul"]
[Black "Gharibyan, Mamikon"]
[WhiteFideId "2915138"]
[BlackFideId "13308300"]
[WhiteElo "2314"]
[BlackElo "2445"]
[Result "0-1"]
[Round "11"]
[TimeControl "180+2"]
[Date "2023.03.21"]
[WhiteClock "0:00:03"]
[BlackClock "0:00:38"]

1. d4 {[%clk 0:03:00]}  g6 {[%clk 0:03:00]} 2. Nf3 {[%clk 0:03:01]}  Bg7 {[%clk 0:02:57]} 3. g3 {[%clk 0:03:01]}  c5 {[%clk 0:02:53]} 4. d5 {[%clk 0:02:59]}  d6 {[%clk 0:02:51]} 5. Bg2 {[%clk 0:02:59]}  b5 {[%clk 0:02:52]} 6. O-O {[%clk 0:02:58]}  Nf6 {[%clk 0:02:51]} 7. Re1 {[%clk 0:02:45]}  O-O {[%clk 0:02:49]} 8. e4 {[%clk 0:02:46]}  Bg4 {[%clk 0:02:47]} 9. a4 {[%clk 0:02:43]}  b4 {[%clk 0:02:41]} 10. h3 {[%clk 0:02:43]}  Bxf3 {[%clk 0:02:41]} 11. Qxf3 {[%clk 0:02:43]}  Nbd7 {[%clk 0:02:39]} 12. Nd2 {[%clk 0:02:42]}  a5 {[%clk 0:02:34]} 13. Nc4 {[%clk 0:02:40]}  Nb6 {[%clk 0:02:34]} 14. Qe2 {[%clk 0:02:37]}  Nxc4 {[%clk 0:02:30]} 15. Qxc4 {[%clk 0:02:38]}  Nd7 {[%clk 0:02:31]} 16. Kh2 {[%clk 0:02:32]}  Qc7 {[%clk 0:02:30]} 17. Rb1 {[%clk 0:02:01]}  Nb6 {[%clk 0:02:27]} 18. Qb5 {[%clk 0:01:44]}  Rfb8 {[%clk 0:02:08]} 19. Bg5 {[%clk 0:00:54]}  h6 {[%clk 0:02:00]} 20. Bd2 {[%clk 0:00:55]}  Nd7 {[%clk 0:01:44]} 21. Qe2 {[%clk 0:00:50]}  Nb6 {[%clk 0:01:42]} 22. b3 {[%clk 0:00:49]}  c4 {[%clk 0:01:38]} 23. f4 {[%clk 0:00:50]}  Rd8 {[%clk 0:01:33]} 24. Be3 {[%clk 0:00:48]}  cxb3 {[%clk 0:01:18]} 25. cxb3 {[%clk 0:00:49]}  Rac8 {[%clk 0:01:18]} 26. Qb5 {[%clk 0:00:41]}  Nd7 {[%clk 0:01:14]} 27. Rec1 {[%clk 0:00:33]}  Bc3 {[%clk 0:01:13]} 28. h4 {[%clk 0:00:27]}  Nf6 {[%clk 0:01:09]} 29. Qe2 {[%clk 0:00:24]}  h5 {[%clk 0:01:05]} 30. Bh3 {[%clk 0:00:22]}  Nxe4 {[%clk 0:01:00]} 31. Bxc8 {[%clk 0:00:19]}  Rxc8 {[%clk 0:01:00]} 32. Bd4 {[%clk 0:00:16]}  f5 {[%clk 0:00:54]} 33. Rc2 {[%clk 0:00:11]}  Bxd4 {[%clk 0:00:40]} 34. Rxc7 {[%clk 0:00:11]}  Rxc7 {[%clk 0:00:41]} 35. Rd1 {[%clk 0:00:07]}  Ba7 {[%clk 0:00:40]} 36. Qa6 {[%clk 0:00:03]}  Rc2+ {[%clk 0:00:39]} 37. Kh1 {[%clk 0:00:03]}  Nxg3# {[%clk 0:00:38]} 0-1


[Site "https://www.chess.com"]

[Event "Titled Tuesday Blitz March 21 Early 2023"]
[White "Ashraf, Artin"]
[Black "Starozhilov, Leonid"]
[WhiteFideId "22514805"]
[BlackFideId "14106752"]
[WhiteElo "2188"]
[BlackElo "2402"]
[Result "1-0"]
[Round "11"]
[TimeControl "180+2"]
[Date "2023.03.21"]
[WhiteClock "0:00:05"]
[BlackClock "0:00:02"]

1. Nf3 {[%clk 0:03:00]}  Nf6 {[%clk 0:02:57]} 2. g3 {[%clk 0:03:01]}  g6 {[%clk 0:02:57]} 3. Bg2 {[%clk 0:03:01]}  Bg7 {[%clk 0:02:57]} 4. O-O {[%clk 0:03:02]}  O-O {[%clk 0:02:58]} 5. d4 {[%clk 0:03:02]}  d6 {[%clk 0:02:56]} 6. Nc3 {[%clk 0:03:02]}  c6 {[%clk 0:02:56]} 7. e4 {[%clk 0:02:53]}  Bg4 {[%clk 0:02:55]} 8. a4 {[%clk 0:02:39]}  a5 {[%clk 0:02:54]} 9. h3 {[%clk 0:02:37]}  Bxf3 {[%clk 0:02:54]} 10. Bxf3 {[%clk 0:02:37]}  Nbd7 {[%clk 0:02:51]} 11. Be3 {[%clk 0:02:37]}  e5 {[%clk 0:02:51]} 12. d5 {[%clk 0:02:36]}  Qc7 {[%clk 0:02:46]} 13. Rc1 {[%clk 0:02:33]}  h5 {[%clk 0:02:45]} 14. Qd2 {[%clk 0:02:29]}  Rfc8 {[%clk 0:02:17]} 15. Rfd1 {[%clk 0:02:27]}  Ne8 {[%clk 0:02:10]} 16. g4 {[%clk 0:02:25]}  hxg4 {[%clk 0:01:59]} 17. hxg4 {[%clk 0:02:26]}  Nb6 {[%clk 0:01:54]} 18. b3 {[%clk 0:02:14]}  cxd5 {[%clk 0:01:39]} 19. Nxd5 {[%clk 0:01:54]}  Nxd5 {[%clk 0:01:38]} 20. Qxd5 {[%clk 0:01:54]}  Qe7 {[%clk 0:01:18]} 21. g5 {[%clk 0:01:53]}  Bf8 {[%clk 0:01:11]} 22. Bg4 {[%clk 0:01:08]}  Rc6 {[%clk 0:01:08]} 23. c4 {[%clk 0:00:48]}  Ng7 {[%clk 0:01:06]} 24. Kg2 {[%clk 0:00:48]}  Ne6 {[%clk 0:00:51]} 25. Bxe6 {[%clk 0:00:48]}  fxe6 {[%clk 0:00:52]} 26. Qd3 {[%clk 0:00:45]}  Kf7 {[%clk 0:00:33]} 27. Rh1 {[%clk 0:00:42]}  Bg7 {[%clk 0:00:33]} 28. Rh3 {[%clk 0:00:39]}  Rh8 {[%clk 0:00:29]} 29. Rf3+ {[%clk 0:00:20]}  Kg8 {[%clk 0:00:29]} 30. Rd1 {[%clk 0:00:14]}  Rh5 {[%clk 0:00:28]} 31. Rg3 {[%clk 0:00:14]}  Bf8 {[%clk 0:00:27]} 32. Rh1 {[%clk 0:00:13]}  Rxh1 {[%clk 0:00:22]} 33. Kxh1 {[%clk 0:00:14]}  Qf7 {[%clk 0:00:19]} 34. Rh3 {[%clk 0:00:13]}  b6 {[%clk 0:00:18]} 35. Kg2 {[%clk 0:00:13]}  Qb7 {[%clk 0:00:17]} 36. Qe2 {[%clk 0:00:12]}  Rc7 {[%clk 0:00:13]} 37. Qg4 {[%clk 0:00:13]}  Qc8 {[%clk 0:00:10]} 38. Bxb6 {[%clk 0:00:10]}  Rf7 {[%clk 0:00:08]} 39. Bxa5 {[%clk 0:00:08]}  Rf4 {[%clk 0:00:08]} 40. Qe2 {[%clk 0:00:06]}  Qa8 {[%clk 0:00:08]} 41. Bd2 {[%clk 0:00:04]}  Rxe4 {[%clk 0:00:09]} 42. Qf3 {[%clk 0:00:05]}  Rg4+ {[%clk 0:00:09]} 43. Kf1 {[%clk 0:00:04]}  Re4 {[%clk 0:00:06]} 44. Qf6 {[%clk 0:00:03]}  Bg7 {[%clk 0:00:02]} 45. Qxe6+ {[%clk 0:00:03]}  Kf8 {[%clk 0:00:02]} 46. Qxd6+ {[%clk 0:00:04]}  Kg8 {[%clk 0:00:02]} 47. Qe6+ {[%clk 0:00:04]}  Kf8 {[%clk 0:00:02]} 48. Bb4# {[%clk 0:00:05]} 1-0


[Site "https://www.chess.com"]

[Event "Titled Tuesday Blitz March 21 Early 2023"]
[White "Kilic, Eray"]
[Black "Cuenca Jimenez, Jose Fernando"]
[WhiteFideId "44517173"]
[BlackFideId "2255570"]
[WhiteElo "2328"]
[BlackElo "2429"]
[Result "1-0"]
[Round "11"]
[TimeControl "180+2"]
[Date "2023.03.21"]
[WhiteClock "0:02:27"]
[BlackClock "0:00:14"]

1. e4 {[%clk 0:03:00]}  d6 {[%clk 0:02:59]} 2. d4 {[%clk 0:03:00]}  Nf6 {[%clk 0:02:59]} 3. Nc3 {[%clk 0:02:59]}  e5 {[%clk 0:03:00]} 4. Nf3 {[%clk 0:02:59]}  Nbd7 {[%clk 0:03:00]} 5. Bc4 {[%clk 0:02:59]}  Be7 {[%clk 0:03:00]} 6. O-O {[%clk 0:03:00]}  O-O {[%clk 0:03:01]} 7. a4 {[%clk 0:02:56]}  c6 {[%clk 0:03:01]} 8. Ba2 {[%clk 0:02:54]}  h6 {[%clk 0:02:53]} 9. h3 {[%clk 0:02:54]}  Re8 {[%clk 0:02:53]} 10. Re1 {[%clk 0:02:54]}  exd4 {[%clk 0:02:44]} 11. Qxd4 {[%clk 0:02:53]}  Nf8 {[%clk 0:02:43]} 12. Be3 {[%clk 0:02:46]}  Be6 {[%clk 0:02:42]} 13. Bxe6 {[%clk 0:02:46]}  Nxe6 {[%clk 0:02:42]} 14. Qd2 {[%clk 0:02:46]}  Qa5 {[%clk 0:02:00]} 15. Rad1 {[%clk 0:02:40]}  Qb4 {[%clk 0:01:48]} 16. Nd4 {[%clk 0:02:36]}  Nc5 {[%clk 0:01:26]} 17. Nf5 {[%clk 0:02:35]}  Ncxe4 {[%clk 0:01:02]} 18. Nxe4 {[%clk 0:02:35]}  Qxe4 {[%clk 0:01:02]} 19. Nxg7 {[%clk 0:02:36]}  Rec8 {[%clk 0:00:35]} 20. Bxh6 {[%clk 0:02:34]}  Qg6 {[%clk 0:00:34]} 21. Rxe7 {[%clk 0:02:32]}  Kh7 {[%clk 0:00:29]} 22. Nf5 {[%clk 0:02:27]}  Qxf5 {[%clk 0:00:17]} 23. Rxf7+ {[%clk 0:02:27]}  Kg8 {[%clk 0:00:15]} 24. Rg7+ {[%clk 0:02:27]}  Kh8 {[%clk 0:00:16]} 25. Rg5 {[%clk 0:02:27]}  Qh7 {[%clk 0:00:14]} 26. Bg7+ {[%clk 0:02:27]} 1-0


[Site "https://www.chess.com"]

[Event "Titled Tuesday Blitz March 21 Early 2023"]
[White "Al-Tarboush, Ward"]
[Black "Flores, Diego"]
[WhiteFideId "7601450"]
[BlackFideId "108049"]
[WhiteElo "2257"]
[BlackElo "2606"]
[Result "0-1"]
[Round "11"]
[TimeControl "180+2"]
[Date "2023.03.21"]
[WhiteClock "0:00:04"]
[BlackClock "0:00:31"]

1. e4 {[%clk 0:03:00]}  c5 {[%clk 0:02:59]} 2. Nf3 {[%clk 0:03:00]}  e6 {[%clk 0:02:54]} 3. d4 {[%clk 0:02:59]}  cxd4 {[%clk 0:02:53]} 4. Nxd4 {[%clk 0:03:00]}  a6 {[%clk 0:02:53]} 5. Bd3 {[%clk 0:03:00]}  Bc5 {[%clk 0:02:52]} 6. Nb3 {[%clk 0:03:00]}  Be7 {[%clk 0:02:53]} 7. Qg4 {[%clk 0:02:59]}  g6 {[%clk 0:02:52]} 8. Nc3 {[%clk 0:02:58]}  d6 {[%clk 0:02:50]} 9. Qe2 {[%clk 0:02:53]}  Nd7 {[%clk 0:02:48]} 10. Be3 {[%clk 0:02:53]}  Qc7 {[%clk 0:02:44]} 11. a4 {[%clk 0:02:53]}  b6 {[%clk 0:02:37]} 12. f4 {[%clk 0:02:50]}  Bb7 {[%clk 0:02:37]} 13. O-O {[%clk 0:02:44]}  Ngf6 {[%clk 0:02:37]} 14. Rad1 {[%clk 0:02:43]}  O-O {[%clk 0:02:35]} 15. f5 {[%clk 0:02:28]}  gxf5 {[%clk 0:02:35]} 16. exf5 {[%clk 0:02:26]}  e5 {[%clk 0:02:35]} 17. Bh6 {[%clk 0:02:20]}  Kh8 {[%clk 0:02:33]} 18. Bxf8 {[%clk 0:02:19]}  Rxf8 {[%clk 0:02:34]} 19. Bxa6 {[%clk 0:02:16]}  Ba8 {[%clk 0:02:31]} 20. Bc4 {[%clk 0:02:03]}  b5 {[%clk 0:01:51]} 21. axb5 {[%clk 0:01:58]}  Nb6 {[%clk 0:01:50]} 22. Bd3 {[%clk 0:01:49]}  d5 {[%clk 0:01:45]} 23. Qd2 {[%clk 0:01:21]}  Rg8 {[%clk 0:01:20]} 24. Rde1 {[%clk 0:01:06]}  Nc4 {[%clk 0:01:13]} 25. Qh6 {[%clk 0:00:59]}  Nxb2 {[%clk 0:01:07]} 26. Nd1 {[%clk 0:00:40]}  d4 {[%clk 0:01:05]} 27. Re2 {[%clk 0:00:17]}  Nxd1 {[%clk 0:01:03]} 28. Rxd1 {[%clk 0:00:18]}  e4 {[%clk 0:01:03]} 29. Nxd4 {[%clk 0:00:18]}  Ng4 {[%clk 0:00:54]} 30. Qh5 {[%clk 0:00:15]}  exd3 {[%clk 0:00:52]} 31. Rxd3 {[%clk 0:00:15]}  Bc5 {[%clk 0:00:51]} 32. c3 {[%clk 0:00:10]}  Qf4 {[%clk 0:00:49]} 33. Rf3 {[%clk 0:00:09]}  Qc1+ {[%clk 0:00:48]} 34. Rf1 {[%clk 0:00:09]}  Qxc3 {[%clk 0:00:48]} 35. Qxf7 {[%clk 0:00:04]}  Qxd4+ {[%clk 0:00:48]} 36. Kh1 {[%clk 0:00:05]}  Bd5 {[%clk 0:00:36]} 37. Qh5 {[%clk 0:00:04]}  Ne3 {[%clk 0:00:34]} 38. Rfe1 {[%clk 0:00:04]}  Nxg2 {[%clk 0:00:31]} 39. Rxg2 {[%clk 0:00:04]}  Bxg2# {[%clk 0:00:31]} 0-1


[Site "https://www.chess.com"]

[Event "Titled Tuesday Blitz March 21 Early 2023"]
[White "wqws"]
[Black "Galchenko, Matvey"]
[BlackFideId "24175480"]
[WhiteElo "2628"]
[BlackElo "2404"]
[Result "0-1"]
[Round "11"]
[TimeControl "180+2"]
[Date "2023.03.21"]
[WhiteClock "0:00:06"]
[BlackClock "0:00:11"]

1. e4 {[%clk 0:03:00]}  e6 {[%clk 0:03:00]} 2. d4 {[%clk 0:03:00]}  d5 {[%clk 0:03:00]} 3. Nd2 {[%clk 0:03:00]}  a6 {[%clk 0:03:00]} 4. Ngf3 {[%clk 0:03:01]}  Nf6 {[%clk 0:03:00]} 5. e5 {[%clk 0:03:01]}  Nfd7 {[%clk 0:03:00]} 6. Bd3 {[%clk 0:03:01]}  c5 {[%clk 0:03:01]} 7. c3 {[%clk 0:03:01]}  Nc6 {[%clk 0:03:02]} 8. O-O {[%clk 0:03:02]}  g5 {[%clk 0:03:02]} 9. dxc5 {[%clk 0:02:55]}  g4 {[%clk 0:03:02]} 10. Nd4 {[%clk 0:02:55]}  Ndxe5 {[%clk 0:03:03]} 11. Be2 {[%clk 0:02:52]}  Bxc5 {[%clk 0:03:02]} 12. N2b3 {[%clk 0:02:49]}  Bd6 {[%clk 0:03:02]} 13. Bf4 {[%clk 0:02:36]}  h5 {[%clk 0:02:48]} 14. Re1 {[%clk 0:02:32]}  Nf3+ {[%clk 0:02:43]} 15. Bxf3 {[%clk 0:02:23]}  Bxf4 {[%clk 0:02:43]} 16. Nxc6 {[%clk 0:02:21]}  bxc6 {[%clk 0:02:44]} 17. Qd4 {[%clk 0:02:20]}  Rg8 {[%clk 0:02:28]} 18. Bxd5 {[%clk 0:02:05]}  Bxh2+ {[%clk 0:02:23]} 19. Kxh2 {[%clk 0:02:05]}  cxd5 {[%clk 0:02:24]} 20. Nc5 {[%clk 0:02:01]}  Qd6+ {[%clk 0:02:18]} 21. Kg1 {[%clk 0:02:00]}  Qe7 {[%clk 0:02:02]} 22. c4 {[%clk 0:01:55]}  dxc4 {[%clk 0:02:00]} 23. Ne4 {[%clk 0:01:55]}  Kf8 {[%clk 0:01:57]} 24. Rad1 {[%clk 0:01:50]}  Bb7 {[%clk 0:01:56]} 25. Nf6 {[%clk 0:01:49]}  Rg6 {[%clk 0:01:56]} 26. Nxh5 {[%clk 0:01:43]}  Kg8 {[%clk 0:01:54]} 27. Qd7 {[%clk 0:00:29]}  Qxd7 {[%clk 0:01:07]} 28. Rxd7 {[%clk 0:00:30]}  Bc6 {[%clk 0:01:08]} 29. Rc7 {[%clk 0:00:28]}  Bb5 {[%clk 0:01:07]} 30. a4 {[%clk 0:00:24]}  Bxa4 {[%clk 0:01:07]} 31. Rxc4 {[%clk 0:00:25]}  Bb5 {[%clk 0:01:06]} 32. Rxg4 {[%clk 0:00:25]}  Rxg4 {[%clk 0:01:03]} 33. Nf6+ {[%clk 0:00:25]}  Kg7 {[%clk 0:01:04]} 34. Nxg4 {[%clk 0:00:26]}  Rd8 {[%clk 0:01:04]} 35. Rc1 {[%clk 0:00:25]}  Rd2 {[%clk 0:01:03]} 36. Rc7 {[%clk 0:00:25]}  Rxb2 {[%clk 0:00:51]} 37. Ne5 {[%clk 0:00:25]}  Kf6 {[%clk 0:00:51]} 38. Nxf7 {[%clk 0:00:23]}  a5 {[%clk 0:00:52]} 39. Nd6 {[%clk 0:00:22]}  Bd3 {[%clk 0:00:45]} 40. Ra7 {[%clk 0:00:20]}  Ra2 {[%clk 0:00:43]} 41. f4 {[%clk 0:00:19]}  a4 {[%clk 0:00:38]} 42. g4 {[%clk 0:00:19]}  a3 {[%clk 0:00:38]} 43. Nf7 {[%clk 0:00:19]}  e5 {[%clk 0:00:17]} 44. Nxe5 {[%clk 0:00:18]}  Be4 {[%clk 0:00:18]} 45. Ra6+ {[%clk 0:00:18]}  Ke7 {[%clk 0:00:18]} 46. Nc4 {[%clk 0:00:17]}  Rg2+ {[%clk 0:00:15]} 47. Kf1 {[%clk 0:00:16]}  a2 {[%clk 0:00:16]} 48. Ra7+ {[%clk 0:00:15]}  Kd8 {[%clk 0:00:15]} 49. Nd6 {[%clk 0:00:13]}  Bd5 {[%clk 0:00:15]} 50. Nf7+ {[%clk 0:00:13]}  Kc8 {[%clk 0:00:14]} 51. Nd6+ {[%clk 0:00:13]}  Kb8 {[%clk 0:00:14]} 52. Ra5 {[%clk 0:00:13]}  Rh2 {[%clk 0:00:14]} 53. g5 {[%clk 0:00:10]}  a1=Q+ {[%clk 0:00:12]} 54. Rxa1 {[%clk 0:00:09]}  Rh1+ {[%clk 0:00:12]} 55. Kf2 {[%clk 0:00:10]}  Rxa1 {[%clk 0:00:13]} 56. Ke3 {[%clk 0:00:09]}  Kc7 {[%clk 0:00:14]} 57. Nf5 {[%clk 0:00:09]}  Kd7 {[%clk 0:00:14]} 58. Kd4 {[%clk 0:00:09]}  Be6 {[%clk 0:00:13]} 59. Ne3 {[%clk 0:00:09]}  Ra5 {[%clk 0:00:13]} 60. Ke4 {[%clk 0:00:09]}  Ke7 {[%clk 0:00:12]} 61. f5 {[%clk 0:00:09]}  Ra4+ {[%clk 0:00:12]} 62. Ke5 {[%clk 0:00:09]}  Ra5+ {[%clk 0:00:13]} 63. Ke4 {[%clk 0:00:09]}  Bg8 {[%clk 0:00:13]} 64. f6+ {[%clk 0:00:07]}  Ke6 {[%clk 0:00:13]} 65. Ng4 {[%clk 0:00:06]}  Rxg5 {[%clk 0:00:11]} 66. Kf4 {[%clk 0:00:06]}  Ra5 {[%clk 0:00:11]} 67. Nh6 {[%clk 0:00:06]}  Bf7 {[%clk 0:00:10]} 68. Nxf7 {[%clk 0:00:06]}  Kxf7 {[%clk 0:00:11]} 0-1


[Site "https://www.chess.com"]